[Event "DFMMLV 2024"]
[Site "Braunfels"]
[Date "2024.05.31"]
[Round "2.14"]
[White "Kosovska, Olena"]
[Black "Freitag, Julia"]
[Result "1-0"]
[ECO "B42"]
[WhiteElo "1935"]
[BlackElo "2084"]
[Annotator "NA RC"]
[PlyCount "79"]
[EventDate "2024.05.30"]
[EventType "team-tourn"]
[EventCountry "GER"]
[SourceTitle "playchess.com"]
[Source "ChessBase"]
[SourceQuality "1"]
[TimeControl "40/5400+30:1800+30"]

1. e4 {[%emt 0:00:02]} c5 {[%emt 0:00:10]} 2. Nf3 {[%emt 0:00:04]} e6 {[%emt 0:00:17]} 3. d4 {[%emt 0:00:15]} cxd4 {[%emt 0:00:08]} 4. Nxd4 {[%emt 0:00:05]} a6 {[%emt 0:00:06]} 5. c4 {[%emt 0:00:41]} Qc7 {[%emt 0:00:22]} 6. Nc3 {[%emt 0:01:01]} Nf6 {[%emt 0:00:25]} 7. Bd3 {[%emt 0:05:00]} Nc6 {[%emt 0:01:39]} 8. Nxc6 {[%emt 0:02:15]} bxc6 {[%emt 0:02:24]} (8... dxc6 $11 {is superior.} 9. Be3 Bd6) 9. O-O {[%emt 0:01:43]} Be7 {[%emt 0:03:57]} 10. Re1 {[%emt 0:06:02]} e5 {[%emt 0:07:15]} 11. Be3 {[%emt 0:02:56]} O-O {[%emt 0:00:31]} 12. f3 {[%emt 0:02:57]} Bb7 {[%emt 0:01:35]} 13. Qc2 {[%emt 0:04:09]} d6 {[%emt 0:05:19]} 14. Rac1 {[%emt 0:04:34]} Rac8 {[%emt 0:01:19]} 15. Red1 {[%emt 0:01:37]} Rfd8 {[%emt 0:02:23]} 16. Na4 {[%emt 0:06:03]} Nd7 $16 {[%emt 0:01:23]} 17. Qf2 {[%emt 0:06:21]} Qb8 {[%emt 0:05:12]} 18. Ba7 {[%emt 0:13:29]} Qa8 {[%emt 0:02:52]} 19. Bb6 {[%emt 0:01:39]} Re8 {[%emt 0:00:51]} 20. Be3 {[%emt 0:01:42]} Rcd8 {[%emt 0:03:12]} 21. Qe2 {[%emt 0:03:14]} f6 {[%emt 0:02:49]} 22. Kh1 {[%emt 0:05:21]} Kh8 {[%emt 0:01:02]} 23. Bd2 {[%emt 0:01:56]} Rc8 {[%emt 0:06:31]} 24. b3 {[%emt 0:00:32]} a5 {[%emt 0:04:56]} 25. Qe1 {[%emt 0:04:42]} Bd8 {[%emt 0:01:17]} 26. Be3 {[%emt 0:04:34]} Be7 {[%emt 0:04:11]} 27. Bb1 {[%emt 0:01:54]} Qa6 {[%emt 0:12:42]} 28. Bd3 {[%emt 0:03:05]} Qa8 {[%emt 0:00:08]} 29. c5 {[%emt 0:00:31]} d5 {[%emt 0:01:48]} 30. exd5 {[%emt 0:00:26]} cxd5 {[%emt 0:00:07]} 31. Bf5 {[%emt 0:00:56]} d4 {[%emt 0:14:18]} 32. Bxd7 {[%emt 0:01:38]} Bxf3 {[%emt 0:00:33]} 33. gxf3 {[%emt 0:01:11]} Qxf3+ {[%emt 0:00:09]} 34. Kg1 {[%emt 0:00:03]} dxe3 {[%emt 0:00:30]} 35. Qg3 {[%emt 0:04:43]} Qe4 {[%emt 0:06:29]} 36. Bxc8 {[%emt 0:02:00]} Rxc8 {[%emt 0:02:30]} 37. Rc4 {[%emt 0:01:29]} e2 {[%emt 0:05:19]} 38. Rd8+ {[%emt 0:00:54]} Rxd8 {[%emt 0:00:37]} 39. Rxe4 {[%emt 0:00:04]} Rd1+ {[%emt 0:01:28]} 40. Kf2 {[%emt 0:00:37]} 1-0

[Event "DFMMLV 2024"]
[Site "Braunfels"]
[Date "2024.05.31"]
[Round "2.16"]
[White "Peglau, Sarah"]
[Black "Schirmbeck, Lilian"]
[Result "0-1"]
[ECO "A14"]
[WhiteElo "1851"]
[BlackElo "1791"]
[Annotator "NA RC"]
[PlyCount "100"]
[EventDate "2024.05.30"]
[EventType "team-tourn"]
[EventCountry "GER"]
[SourceTitle "playchess.com"]
[Source "ChessBase"]
[SourceQuality "1"]
[TimeControl "40/5400+30:1800+30"]

1. c4 {[%emt 0:00:03]} e6 {[%emt 0:00:10]} 2. g3 {[%emt 0:00:07]} d5 {[%emt 0:00:04]} 3. Bg2 {[%emt 0:00:06]} Nf6 {[%emt 0:00:06]} 4. Nf3 {[%emt 0:00:16]} Be7 {[%emt 0:00:22]} 5. O-O {[%emt 0:00:27]} O-O {[%emt 0:00:14]} 6. b3 {[%emt 0:00:45]} c5 {[%emt 0:00:07]} 7. Bb2 {[%emt 0:00:10]} d4 {[%emt 0:00:35]} 8. e3 {[%emt 0:00:16]} Nc6 {[%emt 0:00:11]} 9. exd4 {[%emt 0:00:22]} cxd4 {[%emt 0:00:12]} 10. Re1 {[%emt 0:00:25]} Qb6 {[%emt 0:04:08]} 11. d3 {[%emt 0:03:20]} Bd7 {[%emt 0:04:15]} 12. Nbd2 $11 {[%emt 0:02:22]} (12. Na3 $1 $14) 12... Rad8 {[%emt 0:01:22]} 13. a3 {[%emt 0:02:44]} a5 {[%emt 0:00:31]} 14. Rb1 {[%emt 0:01:24]} Bc8 {[%emt 0:03:41]} 15. Qc2 {[%emt 0:05:56]} Nd7 {[%emt 0:05:01]} 16. Bc1 {[%emt 0:07:35]} e5 {[%emt 0:03:24]} 17. Ne4 {[%emt 0:09:23]} f6 {[%emt 0:09:48]} 18. b4 {[%emt 0:09:07]} axb4 {[%emt 0:00:36]} 19. axb4 {[%emt 0:02:05]} Bxb4 {[%emt 0:09:51]} 20. Bd2 {[%emt 0:00:44]} f5 {[%emt 0:05:28]} 21. Bxb4 {[%emt 0:08:55]} Nxb4 {[%emt 0:04:46]} 22. Qb3 {[%emt 0:01:33]} Nxd3 {[%emt 0:02:46]} 23. Qxd3 {[%emt 0:03:21]} fxe4 {[%emt 0:00:14]} 24. Qxe4 {[%emt 0:00:33]} Qf6 {[%emt 0:01:54]} 25. Re2 {[%emt 0:07:29]} b6 {[%emt 0:06:18]} 26. Nxe5 {[%emt 0:08:21]} Nxe5 {[%emt 0:10:52]} 27. Qxe5 {[%emt 0:00:30]} Bf5 {[%emt 0:02:06]} 28. Qxf6 {[%emt 0:02:50]} Rxf6 {[%emt 0:00:13]} 29. Rbe1 {[%emt 0:00:39]} d3 {[%emt 0:03:09]} 30. Re8+ {[%emt 0:08:04]} Rxe8 {[%emt 0:00:10]} 31. Rxe8+ {[%emt 0:00:05]} Kf7 {[%emt 0:00:09]} 32. Rd8 {[%emt 0:00:34]} Ke7 {[%emt 0:00:13]} 33. Rd4 {[%emt 0:00:23]} Rd6 {[%emt 0:04:37]} 34. Bd5 {[%emt 0:00:35]} Rd7 {[%emt 0:01:14]} 35. g4 {[%emt 0:01:35]} Bg6 {[%emt 0:02:25]} 36. f4 {[%emt 0:00:46]} b5 {[%emt 0:02:01]} 37. f5 {[%emt 0:01:08]} Bf7 {[%emt 0:01:00]} 38. Rxd3 {[%emt 0:02:27]} bxc4 {[%emt 0:02:11]} 39. Re3+ {[%emt 0:00:49]} Kd6 {[%emt 0:00:32]} 40. Bxf7 {[%emt 0:02:32]} Rxf7 {[%emt 0:00:01]} 41. Kg2 {[%emt 0:30:24]} Kd5 {[%emt 0:31:42]} 42. Kf3 {[%emt 0:00:39]} Rc7 {[%emt 0:01:47]} 43. Ke2 {[%emt 0:02:53]} Kd4 {[%emt 0:02:18]} 44. Re8 {[%emt 0:01:18]} Kc3 {[%emt 0:01:44]} 45. Kd1 {[%emt 0:01:02]} Ra7 {[%emt 0:00:50]} 46. g5 {[%emt 0:02:08]} Rf7 {[%emt 0:02:42]} 47. Re5 {[%emt 0:04:10]} Kd4 {[%emt 0:00:06]} 48. Ra5 {[%emt 0:00:17]} Ke4 {[%emt 0:00:09]} 49. Rc5 {[%emt 0:00:00]} Rxf5 {[%emt 0:00:00]} 50. Rxc4+ {[%emt 0:00:00]} Ke5 {[%emt 0:07:15]} 0-1

[Event "DFMMLV 2024"]
[Site "Braunfels"]
[Date "2024.05.31"]
[Round "2.17"]
[White "Rath, Alina"]
[Black "Jelica, Mara"]
[Result "1-0"]
[ECO "C54"]
[WhiteElo "2041"]
[BlackElo "2067"]
[Annotator "NA RC"]
[PlyCount "57"]
[EventDate "2024.05.30"]
[EventType "team-tourn"]
[EventCountry "GER"]
[SourceTitle "playchess.com"]
[Source "ChessBase"]
[SourceQuality "1"]
[TimeControl "40/5400+30:1800+30"]

1. e4 {[%emt 0:00:03]} e5 {[%emt 0:00:06]} 2. Nf3 {[%emt 0:00:10]} Nc6 {[%emt 0:00:09]} 3. Bc4 {[%emt 0:00:12]} Nf6 {[%emt 0:00:18]} 4. d3 {[%emt 0:00:21]} Bc5 {[%emt 0:00:23]} 5. c3 {[%emt 0:00:36]} a5 {[%emt 0:01:39]} 6. a4 {[%emt 0:01:03] C54: Giuoco Piano: 4 c3 Nf6, main lines with 5 d4 and 5 d3.} d6 {[%emt 0:00:28]} 7. Bg5 {[%emt 0:01:11] Nowadays more popular than 7.0-0.} h6 {[%emt 0:00:45]} 8. Bh4 {[%emt 0:00:24]} Ba7 {[%emt 0:04:06]} 9. Nbd2 {[%emt 0:01:56]} g5 {[%emt 0:08:11]} 10. Bg3 {[%emt 0:01:28]} O-O {[%emt 0:08:06]} 11. Qe2 $146 {[%emt 0:09:14]} ({Predecessor:} 11. O-O Nh7 12. h3 h5 13. Qc2 Qf6 14. Kh1 Kh8 15. Rae1 Qg7 16. Qb3 Rb8 17. Bd5 {0-1 Fedorov,A (2529)-Arjun,K (2477) Pune Maharashtra op 1st 2022 (11)}) 11... Ne7 {[%emt 0:08:36]} 12. h4 {[%emt 0:12:25]} (12. d4 $142) 12... g4 {[%emt 0:01:03]} 13. Nh2 {[%emt 0:00:55]} Ng6 {[%emt 0:06:48]} 14. h5 {[%emt 0:07:41]} Nf4 {[%emt 0:00:23]} (14... Nxh5 $2 {loses.} 15. Nxg4 Nxg3 16. Nxh6+ (16. fxg3 Bxg4 17. Qxg4 Qf6 $16) 16... Kg7 17. fxg3 $18) 15. Bxf4 {[%emt 0:00:30]} exf4 {[%emt 0:00:08]} 16. O-O-O {[%emt 0:01:30]} Qd7 {[%emt 0:01:57]} 17. d4 {[%emt 0:07:30]} Re8 {[%emt 0:05:41]} 18. e5 {[%emt 0:04:42]} Qf5 {[%emt 0:06:25]} 19. Rde1 {[%emt 0:03:49]} d5 $2 {[%emt 0:05:35]} (19... Nxh5 $2 {loses.} 20. Nxg4 Qxg4 21. Rxh5 Qxe2 22. Bxe2 (22. Rxe2 Bg4 $15) 22... dxe5 23. Bb5 $18 (23. Rxh6 $2 exd4 24. cxd4 Bxd4 $19)) (19... Kf8 $15 {stays ahead.}) 20. Bd3 {[%emt 0:01:25]} Qg5 {[%emt 0:02:57] [#]} 21. Ndf3 $18 {[%emt 0:06:55]} Qxh5 {[%emt 0:18:34]} 22. Qc2 {[%emt 0:12:06]} Ne4 {[%emt 0:04:54]} 23. Bxe4 {[%emt 0:03:13]} dxe4 {[%emt 0:00:05]} 24. Nd2 {[%emt 0:00:51]} Bf5 {[%emt 0:05:43]} 25. Nxe4 {[%emt 0:02:09]} Bxe4 {[%emt 0:00:06]} 26. Qxe4 {[%emt 0:02:03]} Qg5 {[%emt 0:04:04]} 27. f3 {[%emt 0:01:59]} h5 {[%emt 0:00:25]} 28. fxg4 {[%emt 0:04:05]} hxg4 {[%emt 0:00:16]} 29. Ref1 {[%emt 0:02:16]} 1-0

[Event "DFMMLV 2024"]
[Site "Braunfels"]
[Date "2024.05.31"]
[Round "2.18"]
[White "Hund, Sarah"]
[Black "Von Herman, Brigitte"]
[Result "1-0"]
[ECO "B01"]
[WhiteElo "1991"]
[BlackElo "1922"]
[Annotator "RC"]
[PlyCount "113"]
[EventDate "2024.05.30"]
[EventType "team-tourn"]
[EventCountry "GER"]
[SourceTitle "playchess.com"]
[Source "ChessBase"]
[SourceQuality "1"]
[TimeControl "40/5400+30:1800+30"]

1. e4 {[%emt 0:00:02]} d5 {[%emt 0:00:07]} 2. exd5 {[%emt 0:00:09]} Qxd5 {[%emt 0:00:01]} 3. Nc3 {[%emt 0:00:13]} Qd6 {[%emt 0:00:04]} 4. g3 {[%emt 0:00:40]} Nf6 {[%emt 0:00:13]} 5. Bg2 {[%emt 0:00:19]} c6 {[%emt 0:00:35]} 6. d4 {[%emt 0:01:05]} Bg4 {[%emt 0:02:06]} 7. Nge2 {[%emt 0:00:49]} e6 {[%emt 0:00:41]} 8. O-O {[%emt 0:01:10]} Qc7 {[%emt 0:02:59]} 9. Bf4 {[%emt 0:06:13]} Qa5 {[%emt 0:00:53]} 10. h3 {[%emt 0:01:53]} Bh5 {[%emt 0:00:33]} 11. a3 {[%emt 0:02:15]} Be7 {[%emt 0:07:12]} 12. Qd2 {[%emt 0:08:04]} Bxe2 {[%emt 0:03:10]} 13. Qxe2 {[%emt 0:00:44]} Qa6 {[%emt 0:01:05]} 14. Rfe1 {[%emt 0:18:47]} Qxe2 {[%emt 0:04:26]} 15. Rxe2 {[%emt 0:01:48]} Kd7 {[%emt 0:00:34]} 16. Rae1 {[%emt 0:01:57]} Bd6 {[%emt 0:03:56]} 17. Bg5 {[%emt 0:03:45]} h6 {[%emt 0:08:51]} 18. Bxf6 {[%emt 0:05:10]} gxf6 {[%emt 0:00:01]} 19. b4 {[%emt 0:02:18]} a6 {[%emt 0:01:39]} 20. Ne4 {[%emt 0:01:58]} Be7 {[%emt 0:04:22]} 21. c4 {[%emt 0:01:51]} Kc7 {[%emt 0:03:49]} 22. d5 {[%emt 0:03:49]} e5 {[%emt 0:15:13]} 23. Nc3 {[%emt 0:00:40]} a5 {[%emt 0:05:05]} 24. c5 {[%emt 0:05:11]} axb4 {[%emt 0:05:41]} 25. d6+ {[%emt 0:04:22]} Kd7 {[%emt 0:00:16]} 26. axb4 {[%emt 0:00:22]} Bf8 {[%emt 0:01:09]} 27. Be4 {[%emt 0:02:38]} Ra3 {[%emt 0:02:38]} 28. Bf5+ {[%emt 0:00:19]} Kd8 {[%emt 0:00:09]} 29. Ra2 {[%emt 0:06:51]} Rxa2 {[%emt 0:00:58]} 30. Nxa2 {[%emt 0:00:02]} Na6 {[%emt 0:01:12]} 31. Ra1 {[%emt 0:03:02]} Rg8 {[%emt 0:03:47]} 32. h4 {[%emt 0:01:08]} h5 {[%emt 0:00:53]} 33. Nc3 {[%emt 0:00:39]} Rg7 {[%emt 0:03:49]} 34. Ne4 {[%emt 0:00:41]} Rg8 {[%emt 0:01:32]} 35. Nxf6 {[%emt 0:02:05]} Rh8 {[%emt 0:00:03]} 36. Bd3 {[%emt 0:00:17]} Bg7 {[%emt 0:05:22]} 37. Bxa6 {[%emt 0:01:50]} Bxf6 {[%emt 0:08:01]} 38. Bxb7 {[%emt 0:00:45]} Kd7 {[%emt 0:00:01]} 39. Ra6 {[%emt 0:00:49]} Rb8 {[%emt 0:01:07]} 40. Bxc6+ {[%emt 0:00:15]} Ke6 {[%emt 0:03:51]} 41. b5 {[%emt 0:37:24]} e4 {[%emt 0:31:46]} 42. Ra4 {[%emt 0:04:22]} e3 {[%emt 0:00:00]} 43. fxe3 {[%emt 0:00:00]} Be5 {[%emt 0:00:00]} 44. Kf2 {[%emt 0:00:00]} f5 {[%emt 0:00:00]} 45. Ra7 {[%emt 0:00:00]} Rg8 {[%emt 0:00:00]} 46. Re7+ {[%emt 0:00:00]} Kf6 {[%emt 0:00:00]} 47. Rxe5 {[%emt 0:00:00]} Kxe5 {[%emt 0:00:00]} 48. b6 {[%emt 0:00:00]} Ke6 {[%emt 0:00:00]} 49. Bf3 {[%emt 0:00:00]} Rc8 {[%emt 0:00:00]} 50. b7 {[%emt 0:00:00]} Rb8 {[%emt 0:00:00]} 51. Ke2 {[%emt 0:00:00]} Kd7 {[%emt 0:00:00]} 52. Kd3 {[%emt 0:00:00]} Re8 {[%emt 0:00:00]} 53. Kd4 {[%emt 0:00:00]} Ke6 {[%emt 0:00:00]} 54. Bxh5 {[%emt 0:00:00]} Rb8 {[%emt 0:00:00]} 55. Bf3 {[%emt 0:00:00]} Rd8 {[%emt 0:00:00]} 56. Kc4 {[%emt 0:00:00]} Ke5 {[%emt 0:00:00]} 57. Kb5 {[%emt 0:10:19]} 1-0

[Event "DFMMLV 2024"]
[Site "Braunfels"]
[Date "2024.05.31"]
[Round "2.19"]
[White "Skogvall, Martina"]
[Black "Novikova, Margarita"]
[Result "1-0"]
[ECO "A05"]
[WhiteElo "1952"]
[BlackElo "1999"]
[Annotator "RC"]
[PlyCount "87"]
[EventDate "2024.05.30"]
[EventType "team-tourn"]
[EventCountry "GER"]
[SourceTitle "playchess.com"]
[Source "ChessBase"]
[SourceQuality "1"]
[TimeControl "40/5400+30:1800+30"]

1. e4 {[%emt 0:00:02]} c5 {[%emt 0:00:04]} 2. Nf3 {[%emt 0:00:06]} d6 {[%emt 0:00:12]} 3. d3 {[%emt 0:00:12]} Nc6 {[%emt 0:00:08]} 4. g3 {[%emt 0:00:06]} g6 {[%emt 0:00:06]} 5. Bg2 {[%emt 0:00:06]} Bg7 {[%emt 0:00:09]} 6. c3 {[%emt 0:00:13]} e5 {[%emt 0:00:48]} 7. O-O {[%emt 0:00:10]} Nf6 {[%emt 0:02:20]} 8. a4 {[%emt 0:01:35]} O-O {[%emt 0:00:52]} 9. Nbd2 {[%emt 0:01:05]} h6 {[%emt 0:01:12]} 10. Nc4 {[%emt 0:06:24]} Be6 {[%emt 0:02:43]} 11. Qc2 {[%emt 0:01:48]} Qd7 {[%emt 0:14:58]} 12. b3 {[%emt 0:04:38]} Rfd8 {[%emt 0:02:43]} 13. Ba3 {[%emt 0:01:56]} Rac8 {[%emt 0:08:52]} 14. Rab1 {[%emt 0:17:09]} Nh5 {[%emt 0:09:54]} 15. Qe2 {[%emt 0:11:01]} b6 {[%emt 0:06:10]} 16. Rfd1 {[%emt 0:03:46]} Bh3 {[%emt 0:06:26]} 17. Ne3 {[%emt 0:10:20]} Nf6 {[%emt 0:06:55]} 18. Nc2 {[%emt 0:03:22]} Bxg2 {[%emt 0:05:51]} 19. Kxg2 {[%emt 0:00:02]} d5 {[%emt 0:00:28]} 20. b4 {[%emt 0:04:39]} cxb4 {[%emt 0:04:22]} 21. cxb4 {[%emt 0:00:20]} dxe4 {[%emt 0:00:28]} 22. dxe4 {[%emt 0:00:23]} Qe8 {[%emt 0:00:37]} 23. b5 {[%emt 0:07:00]} Na5 {[%emt 0:04:59]} 24. Nb4 {[%emt 0:04:01]} Nd7 {[%emt 0:04:54]} 25. Nd5 {[%emt 0:01:59]} Nc5 {[%emt 0:02:35]} 26. Bxc5 {[%emt 0:03:01]} Rxc5 {[%emt 0:00:06]} 27. Nd2 {[%emt 0:04:37]} f5 {[%emt 0:02:49]} 28. Nb3 {[%emt 0:02:19]} Nxb3 {[%emt 0:01:06]} 29. Rxb3 {[%emt 0:00:01]} fxe4 {[%emt 0:01:23]} 30. Qxe4 {[%emt 0:00:10]} Rdc8 {[%emt 0:03:28]} 31. Ne3 {[%emt 0:02:57]} Kh7 {[%emt 0:01:28]} 32. Rbd3 {[%emt 0:00:13]} R5c7 {[%emt 0:01:46]} 33. h4 {[%emt 0:00:40]} h5 {[%emt 0:00:26]} 34. g4 {[%emt 0:02:02]} hxg4 {[%emt 0:01:39]} 35. Qxg4 {[%emt 0:00:02]} e4 {[%emt 0:01:33]} 36. Rd5 {[%emt 0:01:06]} Rc5 {[%emt 0:00:55]} 37. h5 {[%emt 0:01:20]} gxh5 {[%emt 0:00:14]} 38. Rh1 {[%emt 0:00:32]} Kg8 {[%emt 0:01:49]} 39. Rhxh5 {[%emt 0:00:01]} Qf7 {[%emt 0:01:11]} 40. Rhf5 {[%emt 0:01:01]} Qe8 {[%emt 0:00:53]} 41. Rfe5 {[%emt 0:08:45]} Qf8 {[%emt 0:07:21]} 42. Nf5 {[%emt 0:10:04]} R8c7 {[%emt 0:06:23]} 43. Rxc5 {[%emt 0:06:17]} bxc5 {[%emt 0:03:09]} 44. Qg6 {[%emt 0:02:02]} 1-0

[Event "DFMMLV 2024"]
[Site "Braunfels"]
[Date "2024.05.31"]
[Round "2.20"]
[White "Timofeeva, Galina"]
[Black "Fock, Amina"]
[Result "1/2-1/2"]
[ECO "B07"]
[WhiteElo "1981"]
[BlackElo "1932"]
[Annotator "RC"]
[PlyCount "133"]
[EventDate "2024.05.30"]
[EventType "team-tourn"]
[EventCountry "GER"]
[SourceTitle "playchess.com"]
[Source "ChessBase"]
[SourceQuality "1"]
[TimeControl "40/5400+30:1800+30"]

1. d4 {[%emt 0:00:01]} d6 {[%emt 0:00:30]} 2. e4 {[%emt 0:00:06]} Nf6 {[%emt 0:00:15]} 3. Nc3 {[%emt 0:00:17]} e5 {[%emt 0:00:22]} 4. dxe5 {[%emt 0:02:27]} dxe5 {[%emt 0:00:06]} 5. Qxd8+ {[%emt 0:00:06]} Kxd8 {[%emt 0:00:03]} 6. f3 {[%emt 0:01:53]} Be6 {[%emt 0:00:18]} 7. Bg5 {[%emt 0:03:17]} Kc8 {[%emt 0:03:02]} 8. O-O-O {[%emt 0:05:25]} Nbd7 {[%emt 0:02:05]} 9. Nge2 {[%emt 0:10:45]} Bc5 {[%emt 0:05:06]} 10. Kb1 {[%emt 0:07:23]} h6 {[%emt 0:10:47]} 11. Bd2 {[%emt 0:01:01]} Re8 {[%emt 0:03:59]} 12. Nc1 {[%emt 0:00:33]} c6 {[%emt 0:01:56]} 13. Nb3 {[%emt 0:00:52]} Bf8 {[%emt 0:05:51]} 14. Be3 {[%emt 0:04:48]} Kc7 {[%emt 0:07:48]} 15. Be2 {[%emt 0:07:29]} b5 {[%emt 0:00:55]} 16. Bd3 {[%emt 0:14:47]} a5 {[%emt 0:07:18]} 17. h3 {[%emt 0:03:48]} a4 {[%emt 0:03:52]} 18. Nd2 {[%emt 0:01:18]} Bc5 {[%emt 0:05:45]} 19. Nf1 {[%emt 0:01:34]} Bxe3 {[%emt 0:09:42]} 20. Nxe3 {[%emt 0:00:02]} g6 {[%emt 0:01:41]} 21. Ng4 {[%emt 0:06:34]} Ng8 {[%emt 0:00:38]} 22. Ne2 {[%emt 0:01:41]} h5 {[%emt 0:00:40]} 23. Ne3 {[%emt 0:01:05]} Nc5 {[%emt 0:01:53]} 24. g4 {[%emt 0:09:12]} Nf6 {[%emt 0:03:26]} 25. g5 {[%emt 0:07:53]} Nfd7 {[%emt 0:02:54]} 26. f4 {[%emt 0:03:27]} exf4 {[%emt 0:01:21]} 27. Nxf4 {[%emt 0:00:02]} Ne5 {[%emt 0:00:46]} 28. Nxe6+ {[%emt 0:01:40]} Rxe6 {[%emt 0:01:27]} 29. Rhf1 {[%emt 0:02:21]} Re7 {[%emt 0:03:48]} 30. Ng2 {[%emt 0:02:07]} Ne6 {[%emt 0:04:49]} 31. h4 {[%emt 0:00:36]} Nc5 {[%emt 0:00:02]} 32. Nf4 {[%emt 0:01:10]} Ng4 {[%emt 0:00:22]} 33. Rde1 {[%emt 0:00:27]} Rae8 {[%emt 0:02:55]} 34. Ng2 {[%emt 0:00:36]} Rd7 {[%emt 0:04:33]} 35. Nf4 {[%emt 0:00:43]} Ree7 {[%emt 0:01:48]} 36. a3 {[%emt 0:00:23]} Rd4 {[%emt 0:01:30]} 37. Ne2 {[%emt 0:00:28]} Rd8 {[%emt 0:02:30]} 38. Nf4 {[%emt 0:00:21]} Ne5 {[%emt 0:00:51]} 39. Re3 {[%emt 0:00:40]} Rb8 {[%emt 0:00:34]} 40. Rfe1 {[%emt 0:00:37]} b4 {[%emt 0:00:47]} 41. axb4 {[%emt 0:04:37]} Rxb4 {[%emt 0:00:27]} 42. Ka2 {[%emt 0:00:32]} Nc4 {[%emt 0:10:45]} 43. Bxc4 {[%emt 0:00:32]} Rxc4 {[%emt 0:00:02]} 44. Nd3 {[%emt 0:03:39]} Rxc2 {[%emt 0:02:10]} 45. Nxc5 {[%emt 0:01:06]} Rxc5 {[%emt 0:00:02]} 46. Rc3 {[%emt 0:06:00]} Rxc3 {[%emt 0:00:55]} 47. bxc3 {[%emt 0:00:01]} Kd6 {[%emt 0:09:25]} 48. Ka3 {[%emt 0:00:57]} Ra7 {[%emt 0:01:54]} 49. Rd1+ {[%emt 0:04:27]} Ke5 {[%emt 0:00:03]} 50. Rd4 {[%emt 0:00:07]} Ra6 {[%emt 0:07:36]} 51. Rd7 {[%emt 0:01:28]} Ke6 {[%emt 0:00:02]} 52. Rd4 {[%emt 0:00:01]} f6 {[%emt 0:01:40]} 53. gxf6 {[%emt 0:01:07]} Kxf6 {[%emt 0:00:01]} 54. Rd6+ {[%emt 0:00:10]} Kf7 {[%emt 0:00:05]} 55. c4 {[%emt 0:04:26]} Ra5 {[%emt 0:01:43]} 56. Rxc6 {[%emt 0:06:25]} Re5 {[%emt 0:00:02]} 57. Kxa4 {[%emt 0:00:01]} Rxe4 {[%emt 0:00:06]} 58. Kb5 {[%emt 0:01:05]} Rxh4 {[%emt 0:00:01]} 59. Rd6 {[%emt 0:00:14]} Rh1 {[%emt 0:00:46]} 60. c5 {[%emt 0:00:13]} h4 {[%emt 0:02:34]} 61. c6 {[%emt 0:00:26]} Rc1 {[%emt 0:00:49]} 62. Rd7+ {[%emt 0:03:01]} Kf6 {[%emt 0:00:15]} 63. Rh7 {[%emt 0:00:48]} g5 {[%emt 0:01:42]} 64. c7 {[%emt 0:00:30]} Kf5 {[%emt 0:00:00]} 65. Kb6 {[%emt 0:00:31]} Kg4 {[%emt 0:00:00]} 66. Rh6 {[%emt 0:00:28]} Rb1+ {[%emt 0:00:50]} 67. Ka7 {[%emt 0:01:13]} 1/2-1/2

[Event "DFMMLV 2024"]
[Site "Braunfels"]
[Date "2024.05.31"]
[Round "2.21"]
[White "Guder, Sibylle"]
[Black "Valkova, Angelika"]
[Result "0-1"]
[ECO "A13"]
[WhiteElo "1933"]
[BlackElo "2004"]
[Annotator "RC"]
[PlyCount "118"]
[EventDate "2024.05.30"]
[EventType "team-tourn"]
[EventCountry "GER"]
[SourceTitle "playchess.com"]
[Source "ChessBase"]
[SourceQuality "1"]
[TimeControl "40/5400+30:1800+30"]

1. c4 {[%emt 0:00:03]} e6 {[%emt 0:00:24]} 2. Nc3 {[%emt 0:00:07]} d5 {[%emt 0:00:29]} 3. e3 {[%emt 0:00:07]} Nf6 {[%emt 0:00:48]} 4. Nf3 {[%emt 0:01:45]} c5 {[%emt 0:06:15]} 5. cxd5 {[%emt 0:00:16]} Nxd5 {[%emt 0:01:25]} 6. Nxd5 {[%emt 0:11:28]} Qxd5 {[%emt 0:00:32]} 7. b3 {[%emt 0:04:47]} Be7 {[%emt 0:04:20]} 8. Bb2 {[%emt 0:01:14]} O-O {[%emt 0:05:03]} 9. Be2 {[%emt 0:04:11]} Nc6 {[%emt 0:06:47]} 10. O-O {[%emt 0:00:38]} b6 {[%emt 0:01:44]} 11. Bc4 {[%emt 0:10:39]} Qd6 {[%emt 0:15:57]} 12. Qe2 {[%emt 0:05:27]} e5 {[%emt 0:06:25]} 13. d4 {[%emt 0:24:05]} e4 {[%emt 0:11:11]} 14. Ne5 {[%emt 0:01:23]} Nxe5 {[%emt 0:02:42]} 15. dxe5 {[%emt 0:00:05]} Qc6 {[%emt 0:05:15]} 16. Rad1 {[%emt 0:05:01]} Be6 {[%emt 0:02:56]} 17. Bb5 {[%emt 0:06:30]} Qb7 {[%emt 0:02:07]} 18. Ba6 {[%emt 0:00:11]} Qc6 {[%emt 0:00:05]} 19. Bb5 {[%emt 0:00:15]} Qc7 {[%emt 0:00:28]} 20. Rd2 {[%emt 0:00:34]} Rfd8 {[%emt 0:06:09]} 21. Rfd1 {[%emt 0:01:22]} h6 {[%emt 0:05:27]} 22. h3 {[%emt 0:01:09]} Rxd2 {[%emt 0:01:08]} 23. Rxd2 {[%emt 0:00:06]} Rd8 {[%emt 0:00:44]} 24. Qd1 {[%emt 0:02:24]} Kf8 {[%emt 0:01:38]} 25. Rxd8+ {[%emt 0:03:49]} Qxd8 {[%emt 0:00:06]} 26. Qxd8+ {[%emt 0:02:06]} Bxd8 {[%emt 0:00:04]} 27. Bc6 {[%emt 0:00:18]} c4 {[%emt 0:05:57]} 28. b4 {[%emt 0:02:57]} c3 {[%emt 0:00:52]} 29. Bxc3 {[%emt 0:00:30]} Bxa2 {[%emt 0:00:06]} 30. Bxe4 {[%emt 0:00:32]} Bc4 {[%emt 0:01:27]} 31. g3 {[%emt 0:03:26]} a5 {[%emt 0:01:24]} 32. Bc6 {[%emt 0:02:47]} axb4 {[%emt 0:04:25]} 33. Bxb4+ {[%emt 0:00:38]} Be7 {[%emt 0:00:04]} 34. Bc3 {[%emt 0:03:18]} Ba3 {[%emt 0:01:36]} 35. Be4 {[%emt 0:00:21]} b5 {[%emt 0:00:19]} 36. Bb1 {[%emt 0:00:40]} b4 {[%emt 0:00:29]} 37. Bd4 {[%emt 0:00:15]} b3 {[%emt 0:00:15]} 38. f4 {[%emt 0:00:38]} Be2 {[%emt 0:00:19]} 39. Be4 {[%emt 0:02:34]} Bd1 {[%emt 0:00:16]} 40. Bd5 {[%emt 0:00:43]} Bc2 {[%emt 0:00:10]} 41. Bf3 {[%emt 0:05:43]} b2 {[%emt 0:00:28]} 42. Bxb2 {[%emt 0:00:05]} Bxb2 {[%emt 0:00:04]} 43. g4 {[%emt 0:00:07]} g5 {[%emt 0:05:45]} 44. Kg2 {[%emt 0:02:36]} Bc1 {[%emt 0:00:59]} 45. f5 {[%emt 0:05:11]} Bxe3 {[%emt 0:00:16]} 46. e6 {[%emt 0:02:13]} fxe6 {[%emt 0:00:14]} 47. fxe6 {[%emt 0:00:15]} Bb3 {[%emt 0:00:21]} 48. h4 {[%emt 0:04:44]} Bxe6 {[%emt 0:00:07]} 49. hxg5 {[%emt 0:00:26]} hxg5 {[%emt 0:00:05]} 50. Kg3 {[%emt 0:02:33]} Ke7 {[%emt 0:00:15]} 51. Be2 {[%emt 0:03:13]} Bd5 {[%emt 0:00:18]} 52. Bd3 {[%emt 0:01:06]} Ke6 {[%emt 0:00:07]} 53. Be2 {[%emt 0:02:25]} Ke5 {[%emt 0:00:05]} 54. Bd3 {[%emt 0:00:23]} Bd2 {[%emt 0:00:08]} 55. Bb5 {[%emt 0:01:50]} Be1+ {[%emt 0:00:05]} 56. Kh3 {[%emt 0:00:13]} Kf4 {[%emt 0:00:06]} 57. Bd7 {[%emt 0:02:58]} Bc4 {[%emt 0:00:07]} 58. Kg2 {[%emt 0:01:11]} Be2 {[%emt 0:00:10]} 59. Kh3 {[%emt 0:00:11]} Bg3 {[%emt 0:00:09]} 0-1